Cogmind - Beta 16 @@@ ROGUE MODE // 2026.01.15 @ 15:52:52 Player: PANZER_VOR! Result: Destroyed by HY-N5I(R) with Subdweller Machine Gun Performance ------------- Evolutions (0) 0 Regions Visited (2) 400 Robots Destroyed (24) 120 Value Destroyed (519) 519 Prototype IDs (2) 40 Alien Tech Used (0) 0 Bonus (0) 0 TOTAL SCORE: 1079 Bonus ------- None Cogmind --------- Core Integrity 0/250 Matter 192/300 Energy 200/200 System Corruption 1% Temperature Cool (0) Movement Rolling (140) Ox4 Location -10/Subcaves Parts ------- > --- POWER (1) -------- Subdweller Power Source > --- PROPULSION (2) --- Wheel Wheel > --- UTILITY (2) ------ Huge Storage Unit Seismic Detector > --- WEAPON (2) ------- Subdweller Machine Gun Subdweller Machine Gun > --- INVENTORY (25) --- Ion Engine Subdweller Monowheel Heat Sink High-capacity Storage Unit Humpback High-capacity Matter Pod (200) High-capacity Matter Pod (118) Structural Scanner Subdweller Optics Sensor Array Improved Terrain Scanner Terrain Scan Processor Transport Network Coupler Hacking Suite Hacking Suite Tractor Beam Light Assault Rifle Light Assault Rifle Light Assault Rifle Mining Laser Scrap Shield Fragment (49) Peak State ------------ > --- POWER ------------ Subdweller Power Source > --- PROPULSION ------- Wheel Wheel > --- UTILITY ---------- High-capacity Storage Unit Seismic Detector > --- WEAPON ----------- Subdweller Machine Gun Subdweller Machine Gun > --- INVENTORY -------- Ion Engine Subdweller Monowheel Heat Sink Huge Storage Unit High-capacity Matter Pod High-capacity Matter Pod Structural Scanner Subdweller Optics Sensor Array Improved Terrain Scanner Terrain Scan Processor Transport Network Coupler Hacking Suite Hacking Suite Tractor Beam Light Assault Rifle Light Assault Rifle Light Assault Rifle Mining Laser Scrap Shield Fragment [Rating: 13] Favorites ----------- Power Ion Engine Engine Ion Engine Propulsion Light Treads Treads Light Treads Wheel Wheel Utility High-capacity Storage Unit Device Heat Sink Storage High-capacity Storage Unit Weapon Assault Rifle Ballistic Gun Assault Rifle Special Weapon Mining Laser Build | -11 -10 -10 ------- Run | Yrd Mat Sub Slots Evolved . | . . . Power . | . . . Propulsion . | . . . Utility . | . . . Weapon . | . . . Parts Attached 26 | 8 9 9 Power 4 | 1 1 2 Engine 4 | 1 1 2 Core . | . . . Reactor . | . . . Propulsion 7 | 4 1 2 Treads 2 | 2 . . Leg . | . . . Wheel 5 | 2 1 2 Hover . | . . . Flight . | . . . Utility 8 | 1 4 3 Device 4 | . 2 2 Storage 4 | 1 2 1 Processor . | . . . Hackware . | . . . Protection . | . . . Artifact . | . . . Weapon 7 | 2 3 2 Energy Gun . | . . . Energy Cannon . | . . . Ballistic Gun 6 | 2 2 2 Ballistic Cannon . | . . . Launcher . | . . . Special Weapon 1 | . 1 . Impact Weapon . | . . . Slashing Weapon . | . . . Piercing Weapon . | . . . Special Melee Weapon . | . . . Unidentified Prototypes . | . . . Parts Lost 6 | . 1 5 Power 1 | . . 1 Propulsion 2 | . 1 1 Utility 1 | . . 1 Weapon 2 | . . 2 Highest Loss Streak 5 | . 1 5 To Critical Strikes . | . . . Average Backups 12 | 3 11 19 Power . | . 1 . Propulsion 1 | 1 1 1 Utility 6 | . 5 13 Weapon 3 | . 3 3 Tool/Special . | . . . Unused Backups 17 | . 4 13 Power . | . . . Propulsion 3 | . 2 1 Utility 12 | . 1 11 Weapon 2 | . 1 1 Tool/Special . | . . . Average Slot Usage (%) 98 | . 98 94 Engine 13 | . 14 13 Treads 19 | . 23 2 Wheel 7 | . 3 21 Device 13 | . 13 13 Storage 14 | . 14 14 Ballistic Gun 27 | . 27 27 Peak Build Rating 13 | 6 10 13 Average Rating 8 | 4 8 10 On Entrance 5 | . 6 9 Avg Prop Armor Cover (%) 11 | . 11 11 Naked Turns . | . . . Heaviest Build 94 | 12 50 94 Greatest Support 40 | 40 40 20 Greatest Overweight (x) 5 | 2 4 5 Average Overweight (x) 2 | . 1 3 Largest Inventory Capacity 25 | 8 20 25 Average Capacity 16 | 6 15 20 Most Carried 22 | 6 20 22 Average Carried 12 | 3 11 19 Final Capacity 25 | 8 20 25 Final Carried 22 | 6 20 22 Class Distribution -------------------- 86% | Mutant 13% | Scavenger-Mutant Dominant Class ---------------- Mutant | -10/Materials Scavenger-Mutant | -10/Subcaves Resources | -11 -10 -10 ----------- Run | Yrd Mat Sub Matter Collected 1217 | 201 882 134 Remotely . | . . . Salvage Created 713 | . 579 134 Parts 44 | . 39 5 Haulers Intercepted 2 | . 2 . Recyclers Shooed 2 | . 2 . Parts Field Recycled . | . . . Retrieved Matter . | . . . Parts Self-Destructed . | . . . Prevented . | . . . Parts Restored . | . . . Kills | -11 -10 -10 ------- Run | Yrd Mat Sub Combat Hostiles Destroyed 15 | . 12 3 Guns 15 | . 12 3 Classes Destroyed 8 | . 8 . Worker 1 | . 1 . Tunneler 1 | . 1 . Hauler 2 | . 2 . Operator 2 | . 2 . Watcher 3 | . 3 . Swarmer 5 | . 5 . Grunt 6 | . 6 . Subdweller 4 | . 1 3 Best Kill Streak 3 | . 3 2 Combat Bots Only 3 | . 3 2 Max Kills in Single Turn 2 | . 2 1 Gunslinging 1 | . 1 . Exploded . | . . . Melee . | . . . Uniques/NPCs Destroyed . | . . . Combat | -11 -10 -10 -------- Run | Yrd Mat Sub Hostile Shots Fired 106 | . 75 31 Missed 26 | . 19 7 Hits 80 | . 56 24 Projectile 80 | . 56 24 Damage Taken 1189 | . 688 501 Core 264 | . 149 115 Absorbed by Shields . | . . . Regen/Repaired (Parts) 57 | . 57 . Core Remaining (%) 100 | 100 . . Volleys Fired 110 | 2 90 18 Largest 2 | 2 2 2 Hottest 100 | 40 100 100 Shots Fired 207 | 4 169 34 Gun 193 | 4 157 32 Cannon . | . . . Launcher . | . . . Special 14 | . 12 2 Kinetic 193 | 4 157 32 Thermal 14 | . 12 2 Explosive . | . . . Electromagnetic . | . . . Robot Hit Streak 15 | 2 15 5 Robot Miss Streak 4 | 1 4 2 Penetration Max . | . . . Secondary Targets 3 | . 3 . Max Gunslinging Chain 1 | . 1 . Shots Hit Robots 124 | 3 99 22 Core Hits 43 | . 34 9 Critical Kills . | . . . Critical Parts Destroyed 1 | . 1 . Critical Strikes 1 | . 1 . Destroy 1 | . 1 . Melee Attacks . | . . . Impact . | . . . Slashing . | . . . Piercing . | . . . Sneak Attacks . | . . . Combat Hostiles . | . . . Follow-up Attacks . | . . . Damage Inflicted 1500 | 41 1250 209 Guns 1489 | 38 1242 209 Cannons . | . . . Explosions . | . . . Melee . | . . . Ramming 11 | 3 8 . Kinetic 1489 | 38 1242 209 Thermal . | . . . Explosive . | . . . Electromagnetic . | . . . Impact . | . . . Slashing . | . . . Piercing . | . . . Highest Corruption 1 | . 1 1 Average Corruption 1 | . 1 1 Corruption Purged . | . . . Corruption Blocked . | . . . Effects 14 | . 9 5 Message Errors 3 | . 2 1 Matter Fused 3 | . 2 1 Heat Flow Errors 4 | . 2 2 Energy Discharges 1 | . 1 . Data Loss (minor) 2 | . 1 1 Misfires 1 | . 1 . Overload Shots . | . . . Overflow Damage . | . . . Projectiles . | . . . Explosions . | . . . Melee . | . . . Knockbacks . | . . . Impact . | . . . Kinetic . | . . . Secondary . | . . . Self-Inflicted Damage . | . . . Shots . | . . . Rammed 5 | 2 3 . Targets Rammed 6 | 2 4 . Kicked . | . . . Crushed 1 | . 1 . Highest Temperature 248 | . 224 248 Average Temperature 59 | . 54 109 Received Heat Transfer 255 | . 255 . Siege Activations . | . . . Martial Activations . | . . . Shielding Activations . | . . . Robots Disrupted . | . . . Combat Hostiles . | . . . Robots Corrupted . | . . . Combat Hostiles . | . . . Parts Fried . | . . . Impact Corruptions . | . . . Robots Melted . | . . . Combat Hostiles . | . . . Parts Melted . | . . . Heat Transferred . | . . . Parts Sabotaged . | . . . Parts Stolen . | . . . Parts Stripped . | . . . Power Chain Reactions . | . . . Alert | -11 -10 -10 ------- Run | Yrd Mat Sub Maximum Alert Level . | . . . Low Security (%) 100 | 100 100 . Level 1 . | . . . Level 2 . | . . . Level 3 . | . . . Level 4 . | . . . Level 5 . | . . . High Security . | . . . Max Security . | . . . Peak Influence 113 | . 113 . Initial . | . . . Average 28 | . 30 . Influence Increases 355 | . 355 . Destroy 0b10 Robot/C 220 | . 220 . Destroy 0b10 Robot/NC 45 | . 45 . Destroy Leader 50 | . 50 . Successful Hack 7 | . 7 . Select Force Hacks 30 | . 30 . Destroy Structure 3 | . 3 . Influence Decreases 355 | . 355 . Time Decay 352 | . 352 . Lost Part 3 | . 3 . Squads Dispatched 3 | . 3 . Investigation 2 | . 2 . Extermination . | . . . Reinforcement 1 | . 1 . Assault . | . . . Garrison . | . . . Intercept . | . . . Searches Triggered . | . . . Construction Impeded . | . . . Haulers Reinforced . | . . . Active Scanning Responses . | . . . Cargo Convoy Interrupts . | . . . Stealth | -11 -10 -10 --------- Run | Yrd Mat Sub Distress Signals 2 | . 2 . Communications Jammed . | . . . Distress Signals . | . . . Times Spotted 30 | . 26 4 Peak Tracking Total 3 | . 3 2 Tactical Retreats 1 | . 1 . Traps | -11 -10 -10 ------- Run | Yrd Mat Sub Traps Triggered 2 | . 2 . Indirectly . | . . . Trap Hack Attempts . | . . . Triggered . | . . . Disarmed . | . . . Reprogrammed . | . . . Reused . | . . . Traps Extracted . | . . . Installed . | . . . Triggered . | . . . Machines | -11 -10 -10 ---------- Run | Yrd Mat Sub Machines Disabled . | . . . Max in Single Turn . | . . . Machines Repaired . | . . . Machines Dismantled . | . . . Machines Sabotaged . | . . . Overloaded Fab Kills . | . . . Hacking | -11 -10 -10 --------- Run | Yrd Mat Sub Machines Accessed 4 | . 4 . Terminals 2 | . 2 . Fabricators . | . . . Repair Stations 1 | . 1 . Recycling Units 1 | . 1 . Scanalyzers . | . . . Garrison Access . | . . . Total Hacks 11 | . 11 . Successful 7 | . 7 . Failed 4 | . 4 . Catastrophic . | . . . Database Lockouts . | . . . Manual 3 | . 3 . Terminals 5 | . 5 . Fabricators . | . . . Repair Stations 4 | . 4 . Recycling Units 2 | . 2 . Scanalyzers . | . . . Garrison Access . | . . . Terminal Hacks 3 | . 3 . Robot Analysis 1 | . 1 . Prototype ID Bank 1 | . 1 . Hauler Manifests 1 | . 1 . Fabricator Hacks . | . . . Repair Station Hacks 2 | . 2 . Scan Component 1 | . 1 . Repair 1 | . 1 . Recycling Unit Hacks 1 | . 1 . Report Inventory 1 | . 1 . Scanalyzer . | . . . Garrison Access Hacks . | . . . Unauthorized Hacks 1 | . 1 . Terminals . | . . . Fabricators . | . . . Repair Stations . | . . . Recycling Units 1 | . 1 . Tunnel 1 | . 1 . Scanalyzers . | . . . Garrison Access . | . . . Data Cores Recovered 1 | . 1 . Used . | . . . Hacking Detections 4 | . 4 . Full Trace Events . | . . . Feedback Events . | . . . Feedback Blocked . | . . . Robot Schematics Acquired . | . . . Robots Built . | . . . Authchips . | . . . Time . | . . . Total Robot Build Rating . | . . . Part Schematics Acquired . | . . . Parts Built . | . . . Authchips . | . . . Time . | . . . Total Part Build Rating . | . . . Part Studies Acquired . | . . . Parts Repaired 1 | . 1 . Time 26 | . 26 . Parts Recycled . | . . . Recycled Matter . | . . . Retrieved Matter . | . . . Retrieved Components . | . . . Parts Scanalyzed . | . . . Part Schematics Acquired . | . . . Parts Damaged . | . . . Bothacking | -11 -10 -10 ------------ Run | Yrd Mat Sub Used RIF Installer . | . . . Robots Hacked . | . . . Non-combat . | . . . Combat . | . . . Robot Hacks Applied . | . . . Relay Couplers Released . | . . . Fabnet Peak Effective % . | . . . Robots Rewired . | . . . Allies Hacked . | . . . Hacks Repelled . | . . . Allies | -11 -10 -10 -------- Run | Yrd Mat Sub Total Allies . | . . . Largest Group . | . . . Highest-Rated Group . | . . . Highest-Rated Ally . | . . . Total Orders . | . . . Ally Attacks . | . . . Total Damage . | . . . Kills . | . . . Allies Corrupted . | . . . Allies Melted . | . . . Intel | -11 -10 -10 ------- Run | Yrd Mat Sub Active Infowar (turns) 781 | . 480 301 Optics 7 | . . 7 Terrain 480 | . 480 . Seismic 294 | . . 294 Robot Analysis Total 1 | . 1 . Derelict Logs Recovered 1 | . . 1 Drone Launches . | . . . Drone Recoveries . | . . . Exploration | -11 -10 -10 ------------- Run | Yrd Mat Sub Turns Passed 2197 | 105 1696 396 Spaces Moved 1059 | 64 742 253 Core 22 | 22 . . Treads 481 | 32 449 . Legs . | . . . Wheels 556 | 10 293 253 Hover . | . . . Flight . | . . . Fastest Speed 50 | 50 140 110 Average Speed 160 | 123 174 126 Slowest Speed 320 | 160 320 155 Overloaded Moves . | . . . Propulsion Burnouts . | . . . Robots Hopped . | . . . Potential Cave-ins . | . . . Cave-ins Triggered . | . . . Exploration Rate (%) 33 | 5 79 17 Regions Visited 2 Branch Regions 1 Pre-discovered Areas 1 | . 1 . Known Exits Taken . | . . . Unknown Exits Taken 2 | 1 1 . Scrap Searched . | . . . Spaces Dug 3 | . 3 . Terrain Destroyed 3 | . 3 . Melee . | . . . Projectile 3 | . 3 . AOE . | . . . Terrain Rammed . | . . . Walls Destroyed . | . . . Machines Disabled . | . . . Actions | -11 -10 -10 --------- Run | Yrd Mat Sub Total 1324 | 81 948 295 Wait 73 | . 69 4 Move 1057 | 63 741 253 Hop . | . . . Pick Up 29 | 6 18 5 Fast Attach 12 | 6 5 1 Attach 4 | . . 4 Detach 2 | . 2 . Swap 20 | 2 10 8 Drop 11 | . 9 2 Fire 110 | 2 90 18 Melee . | . . . Ram . | . . . Kick . | . . . Crush 6 | 2 4 . Escape Stasis . | . . . Rewire . | . . . Trap . | . . . Miscellaneous . | . . . Route ------- -11/Scrapyard -10/Materials (discovered 4 exits: [*Mat x2] / [*Min] / [*Sub]) -10/Subcaves History --------- Turn | Location | Event 50 | -11/Scrapyard | Discovered new exit (range 16) 106 | -11/Scrapyard | Entered Materials 168 | -10/Materials | Discovered new exit (range 3) 333 | -10/Materials | Build established: Mutant 415 | -10/Materials | Discovered new exit (range 10) 806 | -10/Materials | Derelicts attacked the area 843 | -10/Materials | Repaired Lgt. Treads 854 | -10/Materials | Discovered new exit (range 16) 912 | -10/Materials | Core integrity fell below 50% 1584 | -10/Materials | Discovered new exit (range 16) 1802 | -10/Materials | Entered Subcaves 1803 | -10/Subcaves | Approached by a straggling Scientist 1804 | -10/Subcaves | Learned location of 1 exit from Materials 1865 | -10/Subcaves | Core integrity fell below 20% 1903 | -10/Subcaves | Lost 5 parts (1p1n1u2w) 2126 | -10/Subcaves | Shifting Twisted Machinery released Humpback 2132 | -10/Subcaves | Shifting Twisted Machinery released Sub. Monowheel 2198 | -10/Subcaves | Destroyed by HY-N5I(R) with Subdweller Machine Gun Last Messages --------------- 01895_ Subatomizers dissect the Sub. Optics. 01897_ System corrupted: Component data lost. 01897_ Acquired Sub. Optics. YB-717(c): "I think it's somewhere north of here" 01938_ System corrupted: Heat flow error (+293). YB-717(c): "I think it's somewhere north of here" 01957_ System corrupted: Heat flow error (+100). YB-717(c): "I think it's somewhere north of here" 02053_ Acquired Scrap Shield Fragment. YB-717(c): "I think it's somewhere north of here" Humpback falls loose from the Twisted Machinery. Sub. Monowheel falls loose from the Twisted Machinery. 02139_ Dropped Wheel. 02139_ Acquired Sub. Monowheel. 02141_ Dropped Wheel. 02148_ Subatomizers dissect the Wheel. 02150_ Acquired Humpback. YB-717(c): "I think it's somewhere northeast of here" 02160_ Subatomizers dissect the Wheel, destroying it. 02178_ System corrupted: Matter fused (-8). Map ----- +----------------------------------------------------+ | ?????????????????????????????????????????????? | | ?????????????????????????????????????????????? | | ?????????????????????????????????????????????? | | ?????????????????????????????????????????????? | | ?????????????????????????????????????????????? | | ?????????????????????????????????????????????? | | ?????????????????????????????????????????????? | | ?????????????????????????????????????????????? | | ?????????????????????????????????????????????? | | ?????????????????????????????????????????????? | | ?????????????????????? #?????????????????????? | | ?????????????????????? ?????????????????????? | | ?????????????????????? ?????????????????????? | | ?????????????????#???? ?????????????????????? | | ????????????????? ??? ?????????????????????? | | ????????????????? ??? ?????????????????????? | | ??????????????????R??? ??????????????????????? | | ?????????????????? ### ??????????????????????? | | ?????????????????? ??????????????????????? | | ??????????????????? ??????????????????????? | | ??????????????????? ??????????????????????? | | ??????????????????## ??????????????????????? | | ??????????????????# ##?????????????????????? | | ??????????????????# #?????????????????????? | | ??????????????????# #?????????????????????? | | ???????????????????# @ #?????????????????????? | | ???????????????????# #?????????????????????? | | ??????????????????## #?????????????????????? | | ???????????????#### #?????????????????????? | | ???????????????# ##?????????????????????? | | ??????????????## c ####??????????????????? | | ??????????????# ## #??????????????????? | | ??????????????# ## #??????????????????? | | ??????????????#### #??????????????????? | | ???????????????### ##??????????????????? | | ???????????????# ##???????????????????? | | ??????????????## ###????????????????????? | | ??????????????# ##??####????????????????? | | ??????????????# ##### ##???????????????? | | ??????????????### "" ## ? ??????????? | | ????????????????# """ "" ??????????? | | ????????????????# """"" "?????????? | | ????????????????## """#??????????????? | | ???????????????#?# """##??????????????? | | ??????????????## ## ""#??"????????????? | | ??????????????# ### " "##""" ?????????? | | ??????????????# ## """ "" ?????????? | | ??????????????# """" #???????????? | | ??????????????## "" #???????????? | | ???????????????# #??????????? | +----------------------------------------------------+ Best States ------------- Heat Dissipation 35 Energy Generation 10 Energy Capacity 250 Matter Stores 300 Matter Capacity 300 Sight Range 21 Terrain Scan Range 16 Terrain Scan Density 10 Evasion (%) 50 Recoil Reduction 2 Item Schematics ----------------- None Robot Schematics ------------------ None Fabricated ------------ Nothing Repaired ---------- Lgt. Treads | 59% | -10/Materials Studied --------- None Alien Tech Used ----------------- None Achievements -------------- None Challenges ------------ None Game ------ Seed CommAntimissileDetonator Manual? 0 Play Time 00:14:02 Cumulative 282.7 hours Start 2026.01.15 @ 15:37:26 End 2026.01.15 @ 15:52:52 Sessions 1 Manual Loads 0 Difficulty Rogue Special Mode None Game No. 325 Rogue 325 Adventurer 0 Explorer 0 Win Type - Total 4 Types 4/0/0/0/0/0/0/0/0/0 Lore% 77 Gallery% 72 Achievement% 56 Wizard Run 0 Options --------- Layout 0 ASCII 1 Keyboard 1 Movement Vi Keybinds 0 Fullscreen 1 Font 18/T_Terminus Map View 76x50 Zoom Use 0% Tactical HUD 1 Map Filters NONE Filters NONE Steam X RUN: 4ef563e5-aa22-4feb-996b-8e40ecdcf163